fUST/lending_fUST_20250204
["ID","MTS","AMOUNT","RATE_DAILY","PERIOD"]
[351501030,1738605043719,-500.0,0.00016575,2]
[351501032,1738605043729,-500.0,0.00016575,2]
[351501034,1738605043738,-557.96063714,0.00016575,2]
[351501036,1738605043748,-500.0,0.00016575,2]
[351501038,1738605043757,-1003.61,0.00016575,2]
[351501041,1738605043766,-500.0,0.00016575,2]
[351501043,1738605043779,-571.07,0.00016575,2]
[351501045,1738605043788,-2154.98,0.00016575,2]
[351501047,1738605043797,-507.58,0.00016575,2]
[351501049,1738605043807,-4512.66,0.00016575,2]
[351501051,1738605043816,-500.0,0.00016575,2]
[351501052,1738605043826,-500.0,0.00016575,2]
[351501055,1738605043836,-500.0,0.00016575,2]
[351501057,1738605043845,-500.0,0.00016575,2]
[351501059,1738605043854,-500.0,0.00016575,2]
[351501061,1738605043863,-500.0,0.00016575,2]
[351501063,1738605043873,-500.0,0.00016575,2]
[351501065,1738605043882,-500.0,0.00016575,2]
[351501067,1738605043891,-500.0,0.00016575,2]
[351501069,1738605043901,-1509.28,0.00016575,2]
[351501071,1738605043911,-500.0,0.00016575,2]
[351501073,1738605043920,-995.98,0.00016575,2]
[351501075,1738605043930,-500.0,0.00016575,2]
[351501077,1738605043939,-500.0,0.00016575,2]
[351501079,1738605043950,-500.0,0.00016575,2]
[351501081,1738605043960,-9931.78,0.00016575,2]
[351501083,1738605043970,-500.0,0.00016575,2]
[351501085,1738605043979,-518.03,0.00016575,2]
[351501087,1738605043990,-500.0,0.00016575,2]
[351501089,1738605043999,-500.0,0.00016575,2]
[351501091,1738605044008,-526.49335448,0.00016575,2]
[351501093,1738605044018,-581.54,0.00016575,2]
[351501095,1738605044030,-500.0,0.00016575,2]
[351501097,1738605044040,-507.83850901,0.00016575,2]
[351501099,1738605044050,-452.7874046,0.00016575,2]
[351501100,1738605044060,-500.0,0.00016575,2]
[351501103,1738605044070,-500.0,0.00016575,2]
[351501104,1738605044080,-500.0,0.00016575,2]
[351501107,1738605044090,-500.0,0.00016575,2]
[351501109,1738605044100,-500.0,0.00016575,2]
[351501110,1738605044109,-500.0,0.00016575,2]
[351501113,1738605044119,-425.57329149,0.00016575,2]
[351501114,1738605044130,-500.0,0.00016575,2]
[351501117,1738605044139,-500.0,0.00016575,2]
[351501119,1738605044149,-500.0,0.00016575,2]
[351501121,1738605044159,-536.86,0.00016575,2]
[351501123,1738605044169,-500.0,0.00016575,2]
[351501125,1738605044179,-500.0,0.00016575,2]
[351501127,1738605044189,-500.0,0.00016575,2]
[351501129,1738605044199,-500.0,0.00016575,2]
[351501131,1738605044209,-453.94,0.00016575,2]
[351501133,1738605044218,-511.92,0.00016575,2]
[351501135,1738605044228,-500.0,0.00016575,2]
[351501137,1738605044238,-1112.13,0.00016575,2]
[351501139,1738605044247,-170.06751886,0.00016575,2]
[351501141,1738605044257,-500.0,0.00016575,2]
[351501143,1738605044268,-523.50836409,0.00016575,2]
[351501145,1738605044279,-798.36,0.00016575,2]
[351501147,1738605044289,-500.0,0.00016575,2]
[351501149,1738605044298,-500.0,0.00016575,2]
[351501151,1738605044308,-500.0,0.00016575,2]
[351501153,1738605044318,-1036.68,0.00016575,2]
[351501155,1738605044328,-5059.75,0.00016575,2]
[351501157,1738605044338,-500.0,0.00016575,2]
[351501159,1738605044348,-500.0,0.00016575,2]
[351501171,1738605044457,-2300.92,0.00016575,2]
[351501173,1738605044469,-500.0,0.00016575,2]
[351501175,1738605044478,-500.0,0.00016575,2]
[351501177,1738605044487,-500.0,0.00016575,2]
[351501179,1738605044497,-500.0,0.00016575,2]
[351501181,1738605044507,-500.0,0.00016575,2]
[351501183,1738605044516,-860.18,0.00016575,2]
[351501185,1738605044529,-547.71,0.00016575,2]
[351501187,1738605044539,-2583.95,0.00016575,2]
[351501189,1738605044549,-500.0,0.00016575,2]
[351501191,1738605044558,-500.0,0.00016575,2]
[351501193,1738605044568,-301.15034146,0.00016575,2]
[351501195,1738605044578,-500.0,0.00016575,2]
[351501197,1738605044588,-500.0,0.00016575,2]
[351501199,1738605044598,-500.0,0.00016575,2]
[351501201,1738605044608,-188.06988654,0.00016575,2]
[351501204,1738605044618,-500.0,0.00016575,2]
[351501205,1738605044628,-372.48361938,0.00016575,2]
[351501207,1738605044638,-1318.55,0.00016575,2]
[351501210,1738605044647,-717.6,0.00016575,2]
[351501212,1738605044657,-1183.85,0.00016575,2]
[351501214,1738605044667,-229.72185491,0.00016575,2]
[351501216,1738605044677,-345.56525585,0.00016575,2]
[351501218,1738605044686,-500.0,0.00016711,2]
[351501220,1738605044696,-500.0,0.00016711,2]
[351501222,1738605044705,-500.0,0.00016711,2]
[351501224,1738605044714,-500.0,0.00016711,2]
[351501226,1738605044724,-500.0,0.00016711,2]
[351501228,1738605044733,-515.29609466,0.00016711,2]
[351501230,1738605044742,-1580.48,0.00016711,2]
[351501232,1738605044752,-1580.48,0.00016711,2]
[351501234,1738605044761,-1580.48,0.00016711,2]
[351501236,1738605044774,-500.0,0.00016711,2]
[351501237,1738605044784,-500.0,0.00016711,2]
[351501239,1738605044794,-500.0,0.00016711,2]
[351501240,1738605044803,-547.68,0.00016712,2]
[351501241,1738605044813,-500.0,0.00016712,2]
[351501242,1738605044822,-500.0,0.00016712,2]
[351501243,1738605044831,-500.0,0.00016712,2]
[351501244,1738605044840,-540.94,0.00016712,2]
[351501245,1738605044849,-637.51,0.00016712,2]
[351501246,1738605044858,-500.0,0.00016712,2]
[351501247,1738605044867,-500.0,0.00016712,2]
[351501248,1738605044876,-500.0,0.00016712,2]
[351501249,1738605044886,-500.0,0.00016712,2]
[351501250,1738605044895,-500.0,0.00016712,2]
[351501251,1738605044904,-500.0,0.00016712,2]
[351501252,1738605044913,-500.0,0.00016712,2]
[351501253,1738605044923,-500.0,0.00016712,2]
[351501254,1738605044931,-500.0,0.00016712,2]
[351501255,1738605044941,-500.0,0.00016712,2]
[351501256,1738605044950,-500.0,0.00016712,2]
[351501257,1738605044959,-500.0,0.00016712,2]
[351501258,1738605044969,-518.3994892,0.00016712,2]
[351501259,1738605044978,-500.0,0.00016712,2]
[351501260,1738605044987,-500.0,0.00016712,2]
[351501261,1738605044996,-500.0,0.00016712,2]
[351501262,1738605045006,-500.0,0.00016712,2]
[351501263,1738605045015,-3517.94,0.00016712,2]
[351501265,1738605045029,-500.0,0.00016712,2]
[351501267,1738605045038,-500.0,0.00016712,2]
[351501269,1738605045047,-500.0,0.00016712,2]
[351501271,1738605045057,-500.0,0.00016712,2]
[351501273,1738605045067,-1003.61,0.00016712,2]
[351501275,1738605045078,-500.0,0.00016712,2]
[351501277,1738605045088,-571.07,0.00016712,2]
[351501279,1738605045098,-2154.98,0.00016712,2]
[351501282,1738605045108,-507.58,0.00016712,2]
[351501283,1738605045118,-4512.66,0.00016712,2]
[351501285,1738605045128,-500.0,0.00016712,2]
[351501287,1738605045138,-500.0,0.00016712,2]
[351501290,1738605045148,-500.0,0.00016712,2]
[351501291,1738605045158,-500.0,0.00016712,2]
[351501294,1738605045167,-1509.28,0.00016712,2]
[351501295,1738605045177,-500.0,0.00016712,2]
[351501298,1738605045187,-995.98,0.00016712,2]
[351501300,1738605045196,-500.0,0.00016712,2]
[351501302,1738605045205,-9931.78,0.00016712,2]
[351501304,1738605045215,-500.0,0.00016712,2]
[351501306,1738605045224,-518.03,0.00016712,2]
[351501308,1738605045234,-500.0,0.00016712,2]
[351501309,1738605045244,-581.54,0.00016712,2]
[351501312,1738605045253,-500.0,0.00016712,2]
[351501313,1738605045263,-500.0,0.00016712,2]
[351501315,1738605045275,-500.0,0.00016712,2]
[351501317,1738605045284,-536.86,0.00016712,2]
[351501319,1738605045294,-500.0,0.00016712,2]
[351501321,1738605045302,-500.0,0.00016712,2]
[351501323,1738605045312,-511.92,0.00016712,2]
[351501325,1738605045321,-500.0,0.00016712,2]
[351501327,1738605045331,-1112.13,0.00016712,2]
[351501329,1738605045340,-798.36,0.00016712,2]
[351501331,1738605045350,-1036.68,0.00016712,2]
[351501334,1738605045359,-5059.75,0.00016712,2]
[351501337,1738605045368,-500.0,0.00016712,2]
[351501339,1738605045377,-2300.92,0.00016712,2]
[351501341,1738605045388,-500.0,0.00016712,2]
[351501343,1738605045397,-500.0,0.00016712,2]
[351501345,1738605045410,-500.0,0.00016712,2]
[351501347,1738605045420,-500.0,0.00016712,2]
[351501350,1738605045430,-860.18,0.00016712,2]
[351501352,1738605045440,-547.71,0.00016712,2]
[351501354,1738605045449,-2583.95,0.00016712,2]
[351501356,1738605045458,-500.0,0.00016712,2]
[351501358,1738605045467,-500.0,0.00016712,2]
[351501360,1738605045477,-500.0,0.00016712,2]
[351501361,1738605045488,-169.08381245,0.00016712,2]
[351501363,1738605045497,-1318.55,0.00016712,2]
[351501366,1738605045507,-717.6,0.00016712,2]
[351501368,1738605045516,-1183.85,0.00016712,2]
[351501370,1738605045527,-388.15501194,0.00016753,2]
[351501371,1738605045537,-489.27675899,0.00016848,2]
[351501373,1738605045546,-1580.48,0.00016848,2]
[351501375,1738605045555,-1580.48,0.00016848,2]
[351501377,1738605045564,-500.0,0.00016848,2]
[351501379,1738605045573,-500.0,0.00016848,2]
[351501381,1738605045582,-500.0,0.00016848,2]
[351501383,1738605045591,-500.0,0.00016849,2]
[351501385,1738605045600,-500.0,0.00016849,2]
[351501387,1738605045610,-316.535415,0.00016849,2]
[351501389,1738605045619,-316.535415,0.00016849,2]
[351501391,1738605045632,-500.0,0.00016849,2]
[351501394,1738605045646,-540.94,0.00016849,2]
[351501396,1738605045659,-500.0,0.00016849,2]
[351501399,1738605045673,-500.0,0.00016849,2]
[351501401,1738605045685,-500.0,0.00016849,2]
[351501403,1738605045696,-500.0,0.00016849,2]
[351501406,1738605045710,-500.0,0.00016849,2]
[351501408,1738605045722,-500.0,0.00016849,2]
[351501410,1738605045735,-500.0,0.00016849,2]
[351501413,1738605045748,-500.0,0.00016849,2]
[351501415,1738605045761,-500.0,0.00016849,2]
[351501417,1738605045774,-500.0,0.00016849,2]
[351501420,1738605045786,-500.0,0.00016849,2]
[351501422,1738605045799,-500.0,0.00016849,2]
[351501424,1738605045812,-500.0,0.00016849,2]
[351501427,1738605045825,-500.0,0.00016849,2]
[351501429,1738605045836,-500.0,0.00016849,2]
[351501431,1738605045848,-3517.94,0.00016849,2]
[351501434,1738605045860,-500.0,0.00016849,2]
[351501436,1738605045872,-500.0,0.00016849,2]
[351501438,1738605045885,-500.0,0.00016849,2]
[351501440,1738605045898,-1003.61,0.00016849,2]
[351501443,1738605045911,-500.0,0.00016849,2]
[351501445,1738605045923,-571.07,0.00016849,2]
[351501447,1738605045934,-2154.98,0.00016849,2]
[351501449,1738605045946,-507.58,0.00016849,2]
[351501451,1738605045957,-4512.66,0.00016849,2]
[351501454,1738605045970,-500.0,0.00016849,2]
[351501456,1738605045982,-500.0,0.00016849,2]
[351501458,1738605045995,-500.0,0.00016849,2]
[351501461,1738605046008,-500.0,0.00016849,2]
[351501463,1738605046019,-1509.28,0.00016849,2]
[351501465,1738605046035,-995.98,0.00016849,2]
[351501468,1738605046049,-500.0,0.00016849,2]
[351501470,1738605046061,-9931.78,0.00016849,2]
[351501472,1738605046075,-500.0,0.00016849,2]
[351501474,1738605046085,-518.03,0.00016849,2]
[351501477,1738605046095,-500.0,0.00016849,2]
[351501479,1738605046106,-581.54,0.00016849,2]
[351501481,1738605046116,-500.0,0.00016849,2]
[351501483,1738605046128,-524.96188372,0.00016849,2]
[351501486,1738605046142,-500.0,0.00016849,2]
[351501488,1738605046155,-536.86,0.00016849,2]
[351501490,1738605046168,-500.0,0.00016849,2]
[351501492,1738605046179,-500.0,0.00016849,2]
[351501494,1738605046191,-511.92,0.00016849,2]
[351501497,1738605046203,-1112.13,0.00016849,2]
[351501499,1738605046215,-798.36,0.00016849,2]
[351501501,1738605046227,-1036.68,0.00016849,2]
[351501504,1738605046238,-5059.75,0.00016849,2]
[351501506,1738605046248,-500.0,0.00016849,2]
[351501508,1738605046259,-2300.92,0.00016849,2]
[351501510,1738605046269,-500.0,0.00016849,2]
[351501512,1738605046283,-500.0,0.00016849,2]
[351501514,1738605046294,-500.0,0.00016849,2]
[351501516,1738605046304,-500.0,0.00016849,2]
[351501519,1738605046315,-860.18,0.00016849,2]
[351501521,1738605046326,-547.71,0.00016849,2]
[351501523,1738605046337,-2583.95,0.00016849,2]
[351501525,1738605046347,-500.0,0.00016849,2]
[351501527,1738605046358,-500.0,0.00016849,2]
[351501529,1738605046369,-1318.55,0.00016849,2]
[351501532,1738605046380,-717.6,0.00016849,2]
[351501534,1738605046394,-1183.85,0.00016849,2]
[351501536,1738605046405,-500.0,0.00016853,2]
[351501538,1738605046415,-151.0,0.00016854,2]
[351501540,1738605046426,-151.0,0.00016854,2]
[351501542,1738605046438,-198.30286316,0.00016869,2]
[351501545,1738605046448,-224.14,0.00016914,2]
[351501547,1738605046459,-1580.48,0.00016985,2]
[351501549,1738605046470,-1580.48,0.00016985,2]
[351501551,1738605046481,-1580.48,0.00016985,2]
[351501553,1738605046491,-500.0,0.00016985,2]
[351501555,1738605046502,-311.93375011,0.00016985,2]
[351501557,1738605046513,-500.0,0.00016985,2]
[351501560,1738605046524,-207.10661749,0.00016985,2]
[351501562,1738605046534,-553.38796615,0.00016985,2]
[351501564,1738605046545,-500.0,0.00016985,2]
[351501566,1738605046556,-500.0,0.00016986,2]
[351501568,1738605046567,-500.0,0.00016986,2]
[351501570,1738605046577,-500.0,0.00016986,2]
[351501573,1738605046588,-540.94,0.00016986,2]
[351501575,1738605046601,-500.0,0.00016986,2]
[351501577,1738605046611,-500.0,0.00016986,2]
[351501579,1738605046623,-500.0,0.00016986,2]
[351501581,1738605046633,-500.0,0.00016986,2]
[351501583,1738605046644,-230.38198853,0.00016986,2]
[351501586,1738605046655,-500.0,0.00016986,2]
[351501588,1738605046666,-500.0,0.00016986,2]
[351501590,1738605046676,-500.0,0.00016986,2]
[351501592,1738605046687,-500.0,0.00016986,2]
[351501594,1738605046698,-500.0,0.00016986,2]
[351501596,1738605046709,-500.0,0.00016986,2]
[351501599,1738605046720,-500.0,0.00016986,2]
[351501601,1738605046731,-3517.94,0.00016986,2]
[351501603,1738605046742,-500.0,0.00016986,2]
[351501605,1738605046752,-500.0,0.00016986,2]
[351501607,1738605046764,-500.0,0.00016986,2]
[351501610,1738605046777,-500.0,0.00016986,2]
[351501612,1738605046787,-1003.61,0.00016986,2]
[351501614,1738605046798,-500.0,0.00016986,2]
[351501616,1738605046809,-571.07,0.00016986,2]
[351501618,1738605046821,-2154.98,0.00016986,2]
[351501621,1738605046832,-507.58,0.00016986,2]
[351501623,1738605046843,-4512.66,0.00016986,2]
[351501625,1738605046853,-500.0,0.00016986,2]
[351501627,1738605046864,-500.0,0.00016986,2]
[351501629,1738605046875,-500.0,0.00016986,2]
[351501631,1738605046886,-500.0,0.00016986,2]
[351501633,1738605046898,-1509.28,0.00016986,2]
[351501635,1738605046911,-995.98,0.00016986,2]
[351501638,1738605046922,-500.0,0.00016986,2]
[351501640,1738605046934,-9931.78,0.00016986,2]
[351501642,1738605046947,-360.48880995,0.00016986,2]
[351501644,1738605046958,-518.03,0.00016986,2]
[351501647,1738605046971,-500.0,0.00016986,2]
[351501649,1738605046983,-581.54,0.00016986,2]
[351501651,1738605046995,-500.0,0.00016986,2]
[351501653,1738605047009,-203.76518025,0.00016986,2]
[351501655,1738605047021,-536.86,0.00016986,2]
[351501658,1738605047038,-500.0,0.00016986,2]
[351501674,1738605047193,-500.0,0.00016986,2]
[351501677,1738605047209,-511.92,0.00016986,2]
[351501679,1738605047219,-1112.13,0.00016986,2]
[351501681,1738605047229,-798.36,0.00016986,2]
[351501683,1738605047238,-1036.68,0.00016986,2]
[351501685,1738605047248,-5059.75,0.00016986,2]
[351501687,1738605047257,-500.0,0.00016986,2]
[351501689,1738605047268,-2300.92,0.00016986,2]
[351501691,1738605047280,-500.0,0.00016986,2]
[351501693,1738605047289,-500.0,0.00016986,2]
[351501695,1738605047298,-500.0,0.00016986,2]
[351501696,1738605047307,-860.18,0.00016986,2]
[351501698,1738605047317,-547.71,0.00016986,2]
[351501700,1738605047326,-2583.95,0.00016986,2]
[351501702,1738605047335,-500.0,0.00016986,2]
[351501704,1738605047344,-500.0,0.00016986,2]
[351501706,1738605047353,-1318.55,0.00016986,2]
[351501708,1738605047362,-717.6,0.00016986,2]
[351501710,1738605047371,-1183.85,0.00016986,2]
[351501712,1738605047379,-1994.0,0.00016988,2]
[351501714,1738605047390,-537.0,0.00016988,2]
[351501716,1738605047399,-2299.0,0.00016988,2]
[351501718,1738605047411,-150.823,0.00016988,2]
[351501721,1738605047420,-356.58,0.00017,2]
[351501722,1738605047429,-153.0,0.00017014,2]
[351501724,1738605047437,-153.0,0.00017014,2]
[351501726,1738605047448,-153.0,0.00017014,2]
[351501729,1738605047457,-1000.0,0.00017021,2]
[351501730,1738605047467,-168.0,0.00017054,2]
[351501733,1738605047476,-168.0,0.00017054,2]
[351501734,1738605047487,-12735.6897216,0.00017061,2]
[351501737,1738605047496,-600.0,0.00017068,2]
[351501739,1738605047505,-437.425,0.00017068,2]
[351501741,1738605047515,-1580.48,0.00017122,2]
[351501743,1738605047526,-1580.48,0.00017122,2]
[351501745,1738605047536,-1580.48,0.00017122,2]
[351501747,1738605047545,-1580.48,0.00017122,2]
[351501749,1738605047555,-1580.48,0.00017122,2]
[351501751,1738605047563,-1580.66,0.00017122,2]
[351501753,1738605047573,-151.0,0.00017123,2]
[351501755,1738605047583,-151.0,0.00017123,2]
[351501757,1738605047591,-500.0,0.00017123,2]
[351501759,1738605047600,-500.0,0.00017123,2]
[351501761,1738605047610,-316.535415,0.00017123,2]
[351501763,1738605047619,-316.535415,0.00017123,2]
[351501765,1738605047629,-500.0,0.00017123,2]
[351501767,1738605047638,-540.94,0.00017123,2]
[351501769,1738605047648,-500.0,0.00017123,2]
[351501771,1738605047658,-500.0,0.00017123,2]
[351501773,1738605047667,-500.0,0.00017123,2]
[351501775,1738605047676,-500.0,0.00017123,2]
[351501777,1738605047686,-500.0,0.00017123,2]
[351501779,1738605047695,-500.0,0.00017123,2]
[351501781,1738605047705,-500.0,0.00017123,2]
[351501783,1738605047715,-3517.94,0.00017123,2]
[351501785,1738605047724,-500.0,0.00017123,2]
[351501787,1738605047734,-500.0,0.00017123,2]
[351501789,1738605047743,-500.0,0.00017123,2]
[351501791,1738605047752,-500.0,0.00017123,2]
[351501792,1738605047762,-1003.61,0.00017123,2]
[351501795,1738605047771,-500.0,0.00017123,2]
[351501797,1738605047783,-571.07,0.00017123,2]
[351501798,1738605047792,-2154.98,0.00017123,2]
[351501800,1738605047801,-507.58,0.00017123,2]
[351501803,1738605047811,-4512.66,0.00017123,2]
[351501804,1738605047820,-500.0,0.00017123,2]
[351501806,1738605047830,-500.0,0.00017123,2]
[351501809,1738605047839,-500.0,0.00017123,2]
[351501811,1738605047848,-500.0,0.00017123,2]
[351501813,1738605047858,-1509.28,0.00017123,2]
[351501815,1738605047867,-995.98,0.00017123,2]
[351501817,1738605047876,-9931.78,0.00017123,2]
[351501819,1738605047885,-518.03,0.00017123,2]
[351501821,1738605047895,-500.0,0.00017123,2]
[351501822,1738605047911,-581.54,0.00017123,2]
[351501825,1738605047927,-500.0,0.00017123,2]
[351501827,1738605047937,-536.86,0.00017123,2]
[351501829,1738605047946,-500.0,0.00017123,2]
[351501831,1738605047956,-500.0,0.00017123,2]
[351501833,1738605047966,-511.92,0.00017123,2]
[351501835,1738605047976,-1112.13,0.00017123,2]
[351501837,1738605047985,-798.36,0.00017123,2]
[351501839,1738605047995,-1036.68,0.00017123,2]
[351501841,1738605048003,-5059.75,0.00017123,2]
[351501843,1738605048013,-500.0,0.00017123,2]
[351501846,1738605048026,-2300.92,0.00017123,2]
[351501847,1738605048035,-500.0,0.00017123,2]
[351501849,1738605048045,-500.0,0.00017123,2]
[351501851,1738605048055,-860.18,0.00017123,2]
[351501853,1738605048065,-547.71,0.00017123,2]
[351501855,1738605048075,-2583.95,0.00017123,2]
[351501857,1738605048084,-500.0,0.00017123,2]
[351501859,1738605048094,-236.86867029,0.00017123,2]
[351501862,1738605048104,-1318.55,0.00017123,2]
[351501864,1738605048114,-717.6,0.00017123,2]
[351501866,1738605048123,-1183.85,0.00017123,2]
[351501868,1738605048133,-500.0,0.0001726,2]
[351501870,1738605048143,-500.0,0.0001726,2]
[351501872,1738605048153,-500.0,0.0001726,2]
[351501874,1738605048162,-540.94,0.0001726,2]
[351501876,1738605048172,-500.0,0.0001726,2]
[351501878,1738605048182,-500.0,0.0001726,2]
[351501880,1738605048191,-500.0,0.0001726,2]
[351501882,1738605048201,-500.0,0.0001726,2]
[351501884,1738605048211,-500.0,0.0001726,2]
[351501886,1738605048222,-500.0,0.0001726,2]
[351501888,1738605048232,-500.0,0.0001726,2]
[351501890,1738605048243,-151.0,0.0001726,2]
[351501892,1738605048253,-3517.94,0.0001726,2]
[351501894,1738605048262,-500.0,0.0001726,2]
[351501896,1738605048275,-594.60265609,0.0001726,2]
[351501898,1738605048284,-151.0,0.0001726,2]
[351501900,1738605048294,-500.0,0.0001726,2]
[351501902,1738605048303,-500.0,0.0001726,2]
[351501904,1738605048313,-1003.61,0.0001726,2]
[351501906,1738605048323,-500.0,0.0001726,2]
[351501908,1738605048333,-571.07,0.0001726,2]
[351501910,1738605048343,-2154.98,0.0001726,2]
[351501912,1738605048354,-507.58,0.0001726,2]
[351501914,1738605048364,-1724.50795014,0.0001726,2]
[351501940,1738605048663,-500.0,0.00016438,2]
[351501941,1738605048673,-406.9954388,0.00016575,2]
[351501942,1738605048684,-88.0045612,0.0001726,2]
[351501946,1738605048867,-460.66838378,0.00016438,2]
[351501948,1738605048879,-39.33161622,0.00016438,2]
[351501950,1738605048889,-396.0,0.00016988,2]
[351501952,1738605048898,-2700.14748866,0.0001726,2]
[351501954,1738605048908,-500.0,0.0001726,2]
[351501956,1738605048918,-500.0,0.0001726,2]
[351501958,1738605048927,-510.24812,0.0001726,2]
[351501960,1738605048937,-510.24812,0.0001726,2]
[351501962,1738605048947,-500.0,0.0001726,2]
[351501964,1738605048958,-500.0,0.0001726,2]
[351501966,1738605048968,-1509.28,0.0001726,2]
[351501968,1738605048977,-995.98,0.0001726,2]
[351501970,1738605048987,-603.84733348,0.0001726,2]
[351503206,1738605760272,487.44171288,0.00020453,120]
[351503211,1738605832327,328.193695,0.00013973,2]
[351503213,1738606022580,1000.0,0.00016,16]
[351503228,1738606189118,699.59882513,0.00015012,2]
[351503285,1738606238112,-186.924811,0.00015444,2]
[351503287,1738606238122,-198.30286316,0.00016338,2]
[351503289,1738606238132,-2080.56035365,0.000164,2]
[351503291,1738606238141,-170.71473635,0.00016428,2]
[351503293,1738606238151,-174.04909473,0.00016437,2]
[351503295,1738606238161,-439.02615029,0.00016437,2]
[351503297,1738606238172,-300.0,0.00016437,2]
[351503299,1738606238191,-382.15394765,0.00016438,2]
[351503301,1738606238201,-159.4576949,0.00016438,2]
[351503303,1738606238211,-500.0,0.00016438,2]
[351503305,1738606238221,-293.3411846,0.00016438,2]
[351503307,1738606238230,-500.0,0.00016438,2]
[351503309,1738606238240,-500.0,0.00016438,2]
[351503311,1738606238250,-500.0,0.00016438,2]
[351503312,1738606238260,-500.0,0.00016438,2]
[351503313,1738606238271,-500.0,0.00016438,2]
[351503314,1738606238281,-500.0,0.00016438,2]
[351503315,1738606238291,-500.0,0.00016438,2]
[351503316,1738606238301,-508.88796431,0.00016438,2]
[351503317,1738606238311,-501.29626383,0.00016438,2]
[351503318,1738606238320,-500.0,0.00016438,2]
[351503319,1738606238331,-500.0,0.00016438,2]
[351503320,1738606238341,-500.0,0.00016438,2]
[351503321,1738606238352,-501.56314382,0.00016438,2]
[351503322,1738606238361,-500.0,0.00016438,2]
[351503323,1738606238371,-500.54927778,0.00016438,2]
[351503325,1738606238381,-500.0,0.00016438,2]
[351503326,1738606238391,-500.0,0.00016438,2]
[351503329,1738606238401,-500.0,0.00016438,2]
[351503330,1738606238411,-500.0,0.00016438,2]
[351503332,1738606238424,-500.0,0.00016438,2]
[351503334,1738606238434,-500.0,0.00016438,2]
[351503336,1738606238443,-500.0,0.00016438,2]
[351503338,1738606238453,-500.0,0.00016438,2]
[351503341,1738606238463,-500.0,0.00016438,2]
[351503342,1738606238473,-500.0,0.00016438,2]
[351503344,1738606238483,-500.29798453,0.00016438,2]
[351503346,1738606238494,-500.0,0.00016438,2]
[351503348,1738606238504,-500.0,0.00016438,2]
[351503351,1738606238514,-500.0,0.00016438,2]
[351503353,1738606238523,-500.0,0.00016438,2]
[351503354,1738606238533,-500.0,0.00016438,2]
[351503357,1738606238543,-408.81377868,0.00016438,2]
[351503359,1738606238553,-500.0,0.00016438,2]
[351503361,1738606238563,-500.0,0.00016438,2]
[351503363,1738606238572,-500.0,0.00016438,2]
[351503365,1738606238582,-500.0,0.00016438,2]
[351503367,1738606238592,-500.0,0.00016438,2]
[351503368,1738606238601,-500.0,0.00016438,2]
[351503370,1738606238611,-500.0,0.00016438,2]
[351503373,1738606238620,-500.0,0.00016438,2]
[351503375,1738606238629,-500.0,0.00016438,2]
[351503376,1738606238639,-500.0,0.00016438,2]